[Event "Late-Titled-Tuesday-Blitz-July-09-2024"]
[Site "Chess.com"]
[Date "2024.07.09"]
[Round "5"]
[White "VirtualCoach"]
[Black "miraitrunks"]
[Result "1/2-1/2"]
[WhiteElo "2313"]
[BlackElo "2029"]
[TimeControl "180+1"]
[EndTime "14:53:56 PDT"]
[Termination "Game drawn by agreement"]

1. e4 {[%clk 0:02:55.5]} 1... c5 {[%clk 0:02:58.2]} 2. Nf3 {[%clk 0:02:55.6]}
2... Nc6 {[%clk 0:02:58.8]} 3. d4 {[%clk 0:02:55.9]} 3... cxd4 {[%clk
0:02:59.7]} 4. Nxd4 {[%clk 0:02:56.5]} 4... g6 {[%clk 0:03:00.2]} 5. c4 {[%clk
0:02:55.7]} 5... Bg7 {[%clk 0:03:00.4]} 6. Be3 {[%clk 0:02:56]} 6... Nf6 {[%clk
0:03:00.5]} 7. Nc3 {[%clk 0:02:55.5]} 7... Ng4 {[%clk 0:02:58.8]} 8. Qxg4 {[%clk
0:02:52.2]} 8... Nxd4 {[%clk 0:02:59.1]} 9. Qd1 {[%clk 0:02:52.3]} 9... Ne6
{[%clk 0:02:58.2]} 10. Be2 {[%clk 0:02:52]} 10... O-O {[%clk 0:02:58.2]} 11. O-O
{[%clk 0:02:52.5]} 11... d6 {[%clk 0:02:58.3]} 12. Qd2 {[%clk 0:02:50.8]} 12...
a6 {[%clk 0:02:58.4]} 13. Nd5 {[%clk 0:02:50.2]} 13... Nc5 {[%clk 0:02:56.8]}
14. f3 {[%clk 0:02:47.7]} 14... Be6 {[%clk 0:02:49.4]} 15. b4 {[%clk 0:02:46.8]}
15... Bxd5 {[%clk 0:02:48.7]} 16. cxd5 {[%clk 0:02:41.6]} 16... Bxa1 {[%clk
0:02:44.9]} 17. Rxa1 {[%clk 0:02:41.3]} 17... Nd7 {[%clk 0:02:41.9]} 18. Qd4
{[%clk 0:02:37.2]} 18... Nf6 {[%clk 0:02:38.7]} 19. g4 {[%clk 0:02:36.2]} 19...
e5 {[%clk 0:02:31.2]} 20. dxe6 {[%clk 0:02:34.2]} 20... fxe6 {[%clk 0:02:31.1]}
21. Bh6 {[%clk 0:02:34.8]} 21... Rf7 {[%clk 0:02:30.8]} 22. Bc4 {[%clk
0:02:31.4]} 22... d5 {[%clk 0:02:30.4]} 23. Rd1 {[%clk 0:02:24.2]} 23... Nxe4
{[%clk 0:02:16.5]} 24. fxe4 {[%clk 0:02:15.6]} 24... Qh4 {[%clk 0:02:16.3]} 25.
exd5 {[%clk 0:01:38.7]} 25... Qxh6 {[%clk 0:02:00.1]} 26. dxe6 {[%clk 0:01:38]}
26... Re7 {[%clk 0:01:44.8]} 27. Qe5 {[%clk 0:01:27.6]} 27... Rae8 {[%clk
0:01:41]} 28. Rf1 {[%clk 0:01:16.8]} 28... Qd2 {[%clk 0:01:30.3]} 29. Bd5 {[%clk
0:01:10.5]} 29... Qxb4 {[%clk 0:01:22.1]} 30. Rf7 {[%clk 0:00:55.4]} 30... Qxg4+
{[%clk 0:01:01.1]} 31. Kh1 {[%clk 0:00:34]} 31... Qd1+ {[%clk 0:00:58.3]} 32.
Kg2 {[%clk 0:00:34.3]} 32... Qg4+ {[%clk 0:00:57.5]} 33. Kf2 {[%clk 0:00:31.6]}
33... Qh4+ {[%clk 0:00:53.6]} 34. Ke2 {[%clk 0:00:31.9]} 34... Qh5+ {[%clk
0:00:51.4]} 35. Qxh5 {[%clk 0:00:26.6]} 35... gxh5 {[%clk 0:00:52.3]} 36. Kf3
{[%clk 0:00:21.4]} 36... Rxe6 {[%clk 0:00:50.5]} 37. Bxe6 {[%clk 0:00:21.5]}
37... Rxe6 {[%clk 0:00:51.4]} 38. Rxb7 {[%clk 0:00:21.9]} 38... Rc6 {[%clk
0:00:48.3]} 1/2-1/2

[Event "Late-Titled-Tuesday-Blitz-July-09-2024"]
[Site "Chess.com"]
[Date "2024.07.09"]
[Round "5"]
[White "AlleyOoper"]
[Black "Fjal"]
[Result "1/2-1/2"]
[WhiteElo "2555"]
[BlackElo "2403"]
[TimeControl "180+1"]
[EndTime "14:53:59 PDT"]
[Termination "Game drawn by stalemate"]

1. d4 {[%clk 0:02:59]} 1... d6 {[%clk 0:02:50.5]} 2. Nc3 {[%clk 0:02:58.4]} 2...
g6 {[%clk 0:02:50.4]} 3. e4 {[%clk 0:02:57.7]} 3... Bg7 {[%clk 0:02:50.5]} 4.
Nf3 {[%clk 0:02:58.4]} 4... a6 {[%clk 0:02:50.6]} 5. Bc4 {[%clk 0:02:58.3]} 5...
b5 {[%clk 0:02:50.2]} 6. Bd5 {[%clk 0:02:58.5]} 6... c6 {[%clk 0:02:49.3]} 7.
Bb3 {[%clk 0:02:59.1]} 7... Nf6 {[%clk 0:02:46.8]} 8. e5 {[%clk 0:02:57.9]} 8...
dxe5 {[%clk 0:02:46.4]} 9. Nxe5 {[%clk 0:02:58.8]} 9... O-O {[%clk 0:02:45.8]}
10. O-O {[%clk 0:02:58.1]} 10... Nd5 {[%clk 0:02:42]} 11. Nxc6 {[%clk
0:02:18.3]} 11... Nxc3 {[%clk 0:01:58.1]} 12. Nxd8 {[%clk 0:02:17.5]} 12... Nxd1
{[%clk 0:01:58.3]} 13. Nxf7 {[%clk 0:02:18.1]} 13... e6 {[%clk 0:01:45.4]} 14.
Ne5 {[%clk 0:01:59.7]} 14... Nxf2 {[%clk 0:01:07.7]} 15. Rxf2 {[%clk 0:01:58.5]}
15... Bxe5 {[%clk 0:01:04.6]} 16. Rxf8+ {[%clk 0:01:56.9]} 16... Kxf8 {[%clk
0:01:04]} 17. dxe5 {[%clk 0:01:57.5]} 17... Nc6 {[%clk 0:01:02.4]} 18. Bh6+
{[%clk 0:01:51]} 18... Ke7 {[%clk 0:01:02.5]} 19. Bg5+ {[%clk 0:01:50.2]} 19...
Ke8 {[%clk 0:00:59.7]} 20. Bf6 {[%clk 0:01:35.1]} 20... Nd4 {[%clk 0:00:56.1]}
21. Rd1 {[%clk 0:01:31.7]} 21... Nxb3 {[%clk 0:00:53]} 22. Rd8+ {[%clk
0:01:29.2]} 22... Kf7 {[%clk 0:00:52.6]} 23. axb3 {[%clk 0:01:29.3]} 23... h6
{[%clk 0:00:49.1]} 24. h4 {[%clk 0:01:27.7]} 24... a5 {[%clk 0:00:45.7]} 25. Kf2
{[%clk 0:01:25.1]} 25... a4 {[%clk 0:00:45.8]} 26. bxa4 {[%clk 0:01:25.1]} 26...
bxa4 {[%clk 0:00:46.7]} 27. g4 {[%clk 0:01:20.7]} 27... h5 {[%clk 0:00:28]} 28.
g5 {[%clk 0:01:18.6]} 28... a3 {[%clk 0:00:21.6]} 29. bxa3 {[%clk 0:01:17.7]}
29... Rxa3 {[%clk 0:00:21.7]} 30. Rxc8 {[%clk 0:01:16.6]} 30... Rf3+ {[%clk
0:00:21.5]} 31. Ke2 {[%clk 0:01:12.8]} 31... Re3+ {[%clk 0:00:20.5]} 32. Kd2
{[%clk 0:01:11]} 32... Rd3+ {[%clk 0:00:20.6]} 33. Kc1 {[%clk 0:01:09]} 33...
Rd1+ {[%clk 0:00:20.8]} 34. Kb2 {[%clk 0:01:08.7]} 34... Rb1+ {[%clk 0:00:21.7]}
35. Kc3 {[%clk 0:01:08.5]} 35... Rb3+ {[%clk 0:00:22]} 36. Kc4 {[%clk
0:01:07.4]} 36... Rc3+ {[%clk 0:00:22.2]} 37. Kxc3 {[%clk 0:00:44]} 1/2-1/2

[Event "Late-Titled-Tuesday-Blitz-July-09-2024"]
[Site "Chess.com"]
[Date "2024.07.09"]
[Round "5"]
[White "JavierRuizVazquez"]
[Black "Stanbad1"]
[Result "0-1"]
[WhiteElo "2415"]
[BlackElo "2632"]
[TimeControl "180+1"]
[EndTime "14:54:00 PDT"]
[Termination "Stanbad1 won by resignation"]

1. e4 {[%clk 0:03:00.9]} 1... e6 {[%clk 0:03:00]} 2. Nc3 {[%clk 0:02:59.4]} 2...
d5 {[%clk 0:03:00.3]} 3. Nf3 {[%clk 0:02:59.7]} 3... Nf6 {[%clk 0:03:00.2]} 4.
e5 {[%clk 0:02:58.3]} 4... Nfd7 {[%clk 0:03:00.7]} 5. d4 {[%clk 0:02:58.8]} 5...
c5 {[%clk 0:03:00.7]} 6. dxc5 {[%clk 0:02:59.7]} 6... Nc6 {[%clk 0:02:59.9]} 7.
Bf4 {[%clk 0:02:54.6]} 7... Bxc5 {[%clk 0:02:58.1]} 8. Bd3 {[%clk 0:02:54.3]}
8... a6 {[%clk 0:02:58.3]} 9. O-O {[%clk 0:02:52.4]} 9... Be7 {[%clk 0:02:58.3]}
10. Re1 {[%clk 0:02:48.4]} 10... g5 {[%clk 0:02:57.8]} 11. Bg3 {[%clk
0:02:46.9]} 11... h5 {[%clk 0:02:57.6]} 12. h3 {[%clk 0:02:41.1]} 12... b5
{[%clk 0:02:57.3]} 13. a3 {[%clk 0:02:39]} 13... Nc5 {[%clk 0:02:54.5]} 14. Qe2
{[%clk 0:02:23.1]} 14... Bb7 {[%clk 0:02:51.9]} 15. Rad1 {[%clk 0:02:22.3]}
15... Qb6 {[%clk 0:02:51.6]} 16. b4 {[%clk 0:01:51.9]} 16... Nd7 {[%clk
0:02:44.9]} 17. Nb1 {[%clk 0:01:21.1]} 17... Rc8 {[%clk 0:02:42.3]} 18. Nbd2
{[%clk 0:01:20.2]} 18... g4 {[%clk 0:02:39.9]} 19. hxg4 {[%clk 0:01:19.8]} 19...
hxg4 {[%clk 0:02:40.5]} 20. Nh2 {[%clk 0:01:18.7]} 20... Rg8 {[%clk 0:02:39.8]}
21. Nb3 {[%clk 0:01:15.4]} 21... Ncxe5 {[%clk 0:02:27]} 22. Bxe5 {[%clk
0:01:10.6]} 22... Nxe5 {[%clk 0:02:27.2]} 23. Qxe5 {[%clk 0:00:52.7]} 23... g3
{[%clk 0:02:27.6]} 24. Qe3 {[%clk 0:00:23.8]} 24... gxh2+ {[%clk 0:02:20.4]} 25.
Kxh2 {[%clk 0:00:24.7]} 25... Qc7+ {[%clk 0:02:19.7]} 26. Kg1 {[%clk 0:00:24.6]}
26... Rh8 {[%clk 0:02:19.6]} 27. Qe5 {[%clk 0:00:22.6]} 27... Qxe5 {[%clk
0:02:17.5]} 28. Rxe5 {[%clk 0:00:23.5]} 28... Rh6 {[%clk 0:02:13]} 29. Rde1
{[%clk 0:00:23.1]} 29... Kd7 {[%clk 0:02:12.7]} 30. R5e3 {[%clk 0:00:11.7]}
30... Rch8 {[%clk 0:02:11.7]} 31. Kf1 {[%clk 0:00:10.6]} 31... Rg8 {[%clk
0:02:00.3]} 32. Rh3 {[%clk 0:00:03.7]} 32... Rxh3 {[%clk 0:01:56]} 33. gxh3
{[%clk 0:00:04.6]} 33... d4 {[%clk 0:01:56.7]} 34. Ke2 {[%clk 0:00:05.1]} 34...
e5 {[%clk 0:01:55.5]} 35. f4 {[%clk 0:00:04.7]} 35... Rg2+ {[%clk 0:01:55.2]}
36. Kf1 {[%clk 0:00:04.6]} 36... exf4 {[%clk 0:01:53.7]} 37. Nxd4 {[%clk
0:00:04.8]} 37... Rh2 {[%clk 0:01:52.6]} 38. Be4 {[%clk 0:00:02.9]} 38... Bxe4
{[%clk 0:01:51.6]} 39. Rxe4 {[%clk 0:00:03.8]} 39... Rxh3 {[%clk 0:01:51.3]} 40.
Rxf4 {[%clk 0:00:04.2]} 40... Rxa3 {[%clk 0:01:51.4]} 41. Nf5 {[%clk 0:00:03.2]}
41... Bf6 {[%clk 0:01:49.1]} 42. Rf2 {[%clk 0:00:01.9]} 42... Ra1+ {[%clk
0:01:47.7]} 43. Kg2 {[%clk 0:00:02]} 43... Ke6 {[%clk 0:01:47.6]} 44. Ne3 {[%clk
0:00:01.6]} 44... Bd4 {[%clk 0:01:48]} 45. Re2 {[%clk 0:00:01.3]} 45... Bxe3
{[%clk 0:01:48.7]} 46. Rxe3+ {[%clk 0:00:02.2]} 46... Kd5 {[%clk 0:01:49.6]} 47.
c3 {[%clk 0:00:02.8]} 47... Kc4 {[%clk 0:01:49.7]} 48. Rf3 {[%clk 0:00:03.4]}
48... Ra2+ {[%clk 0:01:49.8]} 49. Kg3 {[%clk 0:00:03.5]} 49... Ra3 {[%clk
0:01:50.5]} 50. Rxf7 {[%clk 0:00:03.9]} 50... Kxc3 {[%clk 0:01:51]} 51. Kf4
{[%clk 0:00:04.8]} 51... Kxb4 {[%clk 0:01:51.5]} 52. Rb7 {[%clk 0:00:04.7]}
52... a5 {[%clk 0:01:51.9]} 53. Ke4 {[%clk 0:00:05.2]} 53... Rc3 {[%clk
0:01:52.6]} 54. Kd4 {[%clk 0:00:05.4]} 54... Rc8 {[%clk 0:01:52.9]} 55. Kd3
{[%clk 0:00:06.3]} 55... a4 {[%clk 0:01:53.4]} 56. Ra7 {[%clk 0:00:06.5]} 56...
Kb3 {[%clk 0:01:53.7]} 57. Rd7 {[%clk 0:00:04.6]} 57... b4 {[%clk 0:01:53.9]}
58. Kd2 {[%clk 0:00:04.2]} 58... a3 {[%clk 0:01:54.5]} 59. Rd3+ {[%clk
0:00:04.2]} 59... Rc3 {[%clk 0:01:53.9]} 60. Rxc3+ {[%clk 0:00:03.7]} 60...
bxc3+ {[%clk 0:01:54.8]} 61. Kc1 {[%clk 0:00:04.6]} 61... a2 {[%clk 0:01:55.3]}
0-1

[Event "Late-Titled-Tuesday-Blitz-July-09-2024"]
[Site "Chess.com"]
[Date "2024.07.09"]
[Round "5"]
[White "ACollins05"]
[Black "artin10862"]
[Result "0-1"]
[WhiteElo "2487"]
[BlackElo "2936"]
[TimeControl "180+1"]
[EndTime "14:54:07 PDT"]
[Termination "artin10862 won by checkmate"]

1. d4 {[%clk 0:03:00.9]} 1... Nf6 {[%clk 0:02:55.1]} 2. c4 {[%clk 0:03:00.9]}
2... e6 {[%clk 0:02:52.7]} 3. Nf3 {[%clk 0:03:01]} 3... b6 {[%clk 0:02:51.1]} 4.
g3 {[%clk 0:03:00.5]} 4... Ba6 {[%clk 0:02:43.2]} 5. b3 {[%clk 0:02:58.5]} 5...
d5 {[%clk 0:02:41.9]} 6. cxd5 {[%clk 0:02:57.3]} 6... exd5 {[%clk 0:02:40]} 7.
Bg2 {[%clk 0:02:57.7]} 7... Bb4+ {[%clk 0:02:29.9]} 8. Bd2 {[%clk 0:02:57.3]}
8... Be7 {[%clk 0:02:30]} 9. O-O {[%clk 0:02:57]} 9... O-O {[%clk 0:02:30]} 10.
Re1 {[%clk 0:02:56.9]} 10... Nbd7 {[%clk 0:02:20]} 11. Bf4 {[%clk 0:02:56.6]}
11... Bb7 {[%clk 0:02:17.9]} 12. Nbd2 {[%clk 0:02:55.3]} 12... Re8 {[%clk
0:02:17.2]} 13. Rc1 {[%clk 0:02:48.1]} 13... c6 {[%clk 0:02:16.5]} 14. Ne5
{[%clk 0:02:46.3]} 14... Nxe5 {[%clk 0:02:12.6]} 15. Bxe5 {[%clk 0:02:39.6]}
15... Rc8 {[%clk 0:02:05.8]} 16. Nf3 {[%clk 0:02:35.7]} 16... Ne4 {[%clk
0:02:04.1]} 17. Nd2 {[%clk 0:02:33.4]} 17... Bb4 {[%clk 0:01:28.3]} 18. Nxe4
{[%clk 0:02:31.9]} 18... dxe4 {[%clk 0:01:28.1]} 19. Rf1 {[%clk 0:02:29.6]}
19... c5 {[%clk 0:01:27.9]} 20. Bh3 {[%clk 0:02:11.7]} 20... Ra8 {[%clk
0:01:20.1]} 21. Qc2 {[%clk 0:01:51.8]} 21... cxd4 {[%clk 0:01:07.1]} 22. Bc7
{[%clk 0:01:50.6]} 22... Qd5 {[%clk 0:00:50.4]} 23. Bg2 {[%clk 0:01:46]} 23...
Rac8 {[%clk 0:00:50.1]} 24. Bh3 {[%clk 0:01:42.3]} 24... d3 {[%clk 0:00:48.3]}
25. Qc4 {[%clk 0:01:38.3]} 25... Rxc7 {[%clk 0:00:44.4]} 26. Qxd5 {[%clk
0:01:32.3]} 26... Bxd5 {[%clk 0:00:41.2]} 27. Rxc7 {[%clk 0:01:31.7]} 27... dxe2
{[%clk 0:00:41.3]} 28. Rxa7 {[%clk 0:01:28.5]} 28... exf1=Q+ {[%clk 0:00:39.9]}
29. Bxf1 {[%clk 0:01:29.4]} 29... e3 {[%clk 0:00:38.2]} 30. fxe3 {[%clk
0:01:26.6]} 30... Bc5 {[%clk 0:00:38.8]} 31. Bg2 {[%clk 0:01:20.9]} 31... Rxe3
{[%clk 0:00:34.2]} 32. Kf1 {[%clk 0:01:10.7]} 32... Bxg2+ {[%clk 0:00:33.6]} 33.
Kxg2 {[%clk 0:01:10.9]} 33... g6 {[%clk 0:00:34.4]} 34. a4 {[%clk 0:01:09.8]}
34... Rxb3 {[%clk 0:00:33.9]} 35. a5 {[%clk 0:01:09.4]} 35... Rb2+ {[%clk
0:00:31.6]} 36. Kh3 {[%clk 0:01:08.9]} 36... bxa5 {[%clk 0:00:31.4]} 37. Rxa5
{[%clk 0:01:08.6]} 37... Bg1 {[%clk 0:00:32.1]} 38. Kg4 {[%clk 0:01:08.5]} 38...
Bxh2 {[%clk 0:00:30.7]} 39. Kh3 {[%clk 0:01:09.4]} 39... Bg1 {[%clk 0:00:30.4]}
40. Kg4 {[%clk 0:01:10]} 40... Rb3 {[%clk 0:00:30]} 41. Ra2 {[%clk 0:01:05.2]}
41... Bb6 {[%clk 0:00:29.4]} 42. Rc2 {[%clk 0:01:05]} 42... Kg7 {[%clk
0:00:28.8]} 43. Kh3 {[%clk 0:01:01.9]} 43... Bd4 {[%clk 0:00:27.8]} 44. Re2
{[%clk 0:01:00.4]} 44... Re3 {[%clk 0:00:26.8]} 45. Rg2 {[%clk 0:00:57.2]} 45...
Be5 {[%clk 0:00:26.3]} 46. Kh4 {[%clk 0:00:57.2]} 46... Kh6 {[%clk 0:00:23.7]}
47. g4 {[%clk 0:00:56]} 47... g5# {[%clk 0:00:23.5]} 0-1

[Event "Late-Titled-Tuesday-Blitz-July-09-2024"]
[Site "Chess.com"]
[Date "2024.07.09"]
[Round "5"]
[White "giomar27"]
[Black "dodorox"]
[Result "1-0"]
[WhiteElo "2433"]
[BlackElo "2186"]
[TimeControl "180+1"]
[EndTime "14:54:07 PDT"]
[Termination "giomar27 won on time"]

1. d4 {[%clk 0:03:00.9]} 1... Nf6 {[%clk 0:02:59.3]} 2. Nc3 {[%clk 0:03:00.5]}
2... d5 {[%clk 0:02:58.7]} 3. Bf4 {[%clk 0:03:00.2]} 3... e6 {[%clk 0:02:55.4]}
4. e3 {[%clk 0:03:00.2]} 4... Bd6 {[%clk 0:02:54.3]} 5. Qf3 {[%clk 0:02:58.9]}
5... a6 {[%clk 0:02:48.9]} 6. g4 {[%clk 0:02:58.2]} 6... h6 {[%clk 0:02:31.8]}
7. h4 {[%clk 0:02:56.8]} 7... Bxf4 {[%clk 0:02:21.8]} 8. Qxf4 {[%clk 0:02:56.6]}
8... Qd6 {[%clk 0:02:14.2]} 9. Qxd6 {[%clk 0:02:43.9]} 9... cxd6 {[%clk
0:02:15.1]} 10. f3 {[%clk 0:02:44.3]} 10... Nc6 {[%clk 0:02:02.2]} 11. Nh3
{[%clk 0:02:40.9]} 11... e5 {[%clk 0:01:59]} 12. g5 {[%clk 0:02:28.2]} 12...
hxg5 {[%clk 0:01:52.8]} 13. hxg5 {[%clk 0:02:28.3]} 13... exd4 {[%clk
0:01:45.6]} 14. exd4 {[%clk 0:02:26.9]} 14... Nh5 {[%clk 0:01:28.3]} 15. Nf4
{[%clk 0:02:22.6]} 15... g6 {[%clk 0:01:25.1]} 16. Ncxd5 {[%clk 0:02:19.5]}
16... Nxd4 {[%clk 0:01:21.7]} 17. O-O-O {[%clk 0:02:16.2]} 17... Ne6 {[%clk
0:01:16.9]} 18. Nxe6 {[%clk 0:02:07.7]} 18... Bxe6 {[%clk 0:01:15.1]} 19. Nc7+
{[%clk 0:02:07.8]} 19... Kd7 {[%clk 0:01:13.6]} 20. Nxa8 {[%clk 0:02:08.7]}
20... Rxa8 {[%clk 0:01:13.6]} 21. Bh3 {[%clk 0:02:09]} 21... Bxh3 {[%clk
0:01:07.4]} 22. Rxh3 {[%clk 0:02:09.9]} 22... Re8 {[%clk 0:01:08]} 23. Rh2
{[%clk 0:02:08.2]} 23... Ng3 {[%clk 0:00:58.8]} 24. Rhd2 {[%clk 0:02:06.1]}
24... Nf5 {[%clk 0:00:58]} 25. b3 {[%clk 0:01:59.8]} 25... Re3 {[%clk
0:00:57.6]} 26. Rd3 {[%clk 0:01:55.7]} 26... Re2 {[%clk 0:00:58]} 27. R1d2
{[%clk 0:01:55.7]} 27... Re1+ {[%clk 0:00:58]} 28. Kb2 {[%clk 0:01:56.1]} 28...
Rg1 {[%clk 0:00:56]} 29. f4 {[%clk 0:01:54.8]} 29... Rf1 {[%clk 0:00:52.5]} 30.
c4 {[%clk 0:01:54]} 30... Kc6 {[%clk 0:00:43.2]} 31. Re2 {[%clk 0:01:50.6]}
31... Rxf4 {[%clk 0:00:41]} 32. Re8 {[%clk 0:01:50.3]} 32... Rg4 {[%clk
0:00:35]} 33. Rc8+ {[%clk 0:01:48]} 33... Kd7 {[%clk 0:00:29.5]} 34. Rb8 {[%clk
0:01:48.2]} 34... Kc7 {[%clk 0:00:29.2]} 35. Rf8 {[%clk 0:01:48.2]} 35... Rxg5
{[%clk 0:00:28.2]} 36. Rxf7+ {[%clk 0:01:48.3]} 36... Kc6 {[%clk 0:00:28.5]} 37.
Rf6 {[%clk 0:01:48.4]} 37... Rg2+ {[%clk 0:00:25.6]} 38. Ka3 {[%clk 0:01:47.6]}
38... b5 {[%clk 0:00:20.5]} 39. Rc3 {[%clk 0:01:36]} 39... bxc4 {[%clk
0:00:19.1]} 40. Rxc4+ {[%clk 0:01:36]} 40... Kb5 {[%clk 0:00:19.6]} 41. Rf8
{[%clk 0:01:32.7]} 41... Kb6 {[%clk 0:00:15.3]} 42. Rb8+ {[%clk 0:01:32.1]}
42... Ka7 {[%clk 0:00:15.9]} 43. Rbb4 {[%clk 0:01:28.6]} 43... g5 {[%clk
0:00:14.4]} 44. Rc7+ {[%clk 0:01:28.7]} 44... Ka8 {[%clk 0:00:15]} 45. Rb6
{[%clk 0:01:28.6]} 45... g4 {[%clk 0:00:13.2]} 46. Rxa6+ {[%clk 0:01:28.7]}
46... Kb8 {[%clk 0:00:13.8]} 47. Rc4 {[%clk 0:01:26.5]} 47... g3 {[%clk
0:00:11.1]} 48. Rb6+ {[%clk 0:01:26.5]} 48... Ka7 {[%clk 0:00:11.8]} 49. Rb5
{[%clk 0:01:27.4]} 1-0

[Event "Late-Titled-Tuesday-Blitz-July-09-2024"]
[Site "Chess.com"]
[Date "2024.07.09"]
[Round "5"]
[White "Zq1"]
[Black "Hirna2005"]
[Result "1-0"]
[WhiteElo "2580"]
[BlackElo "2411"]
[TimeControl "180+1"]
[EndTime "14:54:12 PDT"]
[Termination "Zq1 won by resignation"]

1. d4 {[%clk 0:03:00.9]} 1... g6 {[%clk 0:03:00.5]} 2. e4 {[%clk 0:02:59.8]}
2... Bg7 {[%clk 0:03:01.1]} 3. Nf3 {[%clk 0:02:59]} 3... d6 {[%clk 0:03:01.7]}
4. c3 {[%clk 0:02:57.6]} 4... Nf6 {[%clk 0:03:01]} 5. Bd3 {[%clk 0:02:57.3]}
5... O-O {[%clk 0:03:01]} 6. O-O {[%clk 0:02:56.8]} 6... Nc6 {[%clk 0:02:59]} 7.
h3 {[%clk 0:02:55.5]} 7... e5 {[%clk 0:02:57.7]} 8. d5 {[%clk 0:02:55.7]} 8...
Ne7 {[%clk 0:02:57.8]} 9. c4 {[%clk 0:02:56.2]} 9... Nd7 {[%clk 0:02:57.7]} 10.
Nc3 {[%clk 0:02:54.1]} 10... a5 {[%clk 0:02:57.3]} 11. a3 {[%clk 0:02:46.2]}
11... f5 {[%clk 0:02:54.5]} 12. Ng5 {[%clk 0:02:44.3]} 12... Nc5 {[%clk
0:02:54.5]} 13. Be3 {[%clk 0:02:32.9]} 13... Nxd3 {[%clk 0:02:40.9]} 14. Qxd3
{[%clk 0:02:31.9]} 14... h6 {[%clk 0:02:38.9]} 15. Ne6 {[%clk 0:02:30.7]} 15...
Bxe6 {[%clk 0:02:38.4]} 16. dxe6 {[%clk 0:02:31.3]} 16... Rf6 {[%clk 0:02:27.8]}
17. Nd5 {[%clk 0:02:27.2]} 17... Rxe6 {[%clk 0:02:24]} 18. Nxe7+ {[%clk
0:02:25.4]} 18... Qxe7 {[%clk 0:02:23.3]} 19. exf5 {[%clk 0:02:25.1]} 19... gxf5
{[%clk 0:02:20.3]} 20. Qxf5 {[%clk 0:02:24.8]} 20... Rf8 {[%clk 0:02:20.5]} 21.
Qe4 {[%clk 0:02:22.7]} 21... b6 {[%clk 0:02:20.3]} 22. Rad1 {[%clk 0:02:15.5]}
22... Qf7 {[%clk 0:02:19.5]} 23. b4 {[%clk 0:02:11.3]} 23... axb4 {[%clk
0:02:18.6]} 24. axb4 {[%clk 0:02:10.9]} 24... Qf5 {[%clk 0:02:04.3]} 25. f3
{[%clk 0:01:58.1]} 25... Rg6 {[%clk 0:01:59.7]} 26. c5 {[%clk 0:01:50.7]} 26...
bxc5 {[%clk 0:01:58.5]} 27. bxc5 {[%clk 0:01:50.3]} 27... Kh7 {[%clk 0:01:55]}
28. g4 {[%clk 0:01:30.4]} 28... Qxe4 {[%clk 0:01:50.8]} 29. fxe4 {[%clk
0:01:29.2]} 29... Rxf1+ {[%clk 0:01:49.6]} 30. Kxf1 {[%clk 0:01:26.2]} 30... Re6
{[%clk 0:01:38.6]} 31. Ke2 {[%clk 0:01:21]} 31... Bf8 {[%clk 0:01:38.5]} 32. c6
{[%clk 0:01:13.5]} 32... Kg6 {[%clk 0:01:35.7]} 33. Rb1 {[%clk 0:00:56.1]} 33...
Re8 {[%clk 0:01:32.4]} 34. Rb7 {[%clk 0:00:54]} 34... Rc8 {[%clk 0:01:32.5]} 35.
Kd3 {[%clk 0:00:52.8]} 35... Be7 {[%clk 0:01:31.2]} 36. Kc4 {[%clk 0:00:51.6]}
36... Bd8 {[%clk 0:01:31.5]} 37. Kd5 {[%clk 0:00:51.7]} 37... Ra8 {[%clk
0:01:23.5]} 38. Ra7 {[%clk 0:00:44.6]} 38... Rxa7 {[%clk 0:01:20.8]} 39. Bxa7
{[%clk 0:00:43.4]} 39... Kf7 {[%clk 0:01:18.4]} 40. Be3 {[%clk 0:00:42.7]} 40...
Bg5 {[%clk 0:01:17.8]} 41. Bf2 {[%clk 0:00:40.7]} 41... Ke7 {[%clk 0:01:15.1]}
42. h4 {[%clk 0:00:38.4]} 42... Bf4 {[%clk 0:01:15.3]} 43. h5 {[%clk 0:00:30.3]}
43... Kf6 {[%clk 0:01:11.2]} 44. Bh4+ {[%clk 0:00:27.3]} 44... Bg5 {[%clk
0:01:11.3]} 45. Bxg5+ {[%clk 0:00:24.2]} 45... Kxg5 {[%clk 0:01:11.5]} 46. Ke6
{[%clk 0:00:23.3]} 46... Kxg4 {[%clk 0:01:11.9]} 47. Kd7 {[%clk 0:00:23.2]}
47... Kf4 {[%clk 0:01:07.5]} 48. Kxc7 {[%clk 0:00:22.6]} 48... Kxe4 {[%clk
0:01:05.1]} 49. Kxd6 {[%clk 0:00:22.5]} 49... Kd4 {[%clk 0:01:05.2]} 50. c7
{[%clk 0:00:22.6]} 50... e4 {[%clk 0:01:06.1]} 51. c8=Q {[%clk 0:00:22.7]} 51...
e3 {[%clk 0:01:07]} 52. Qc5+ {[%clk 0:00:21.4]} 52... Kd3 {[%clk 0:01:07.4]} 53.
Qd5+ {[%clk 0:00:20.4]} 53... Kc2 {[%clk 0:01:07.2]} 54. Qe6 {[%clk 0:00:20]}
54... Kd2 {[%clk 0:01:06.7]} 55. Qxh6 {[%clk 0:00:19.7]} 55... Kd3 {[%clk
0:01:06.3]} 56. Qxe3+ {[%clk 0:00:19.4]} 56... Kxe3 {[%clk 0:01:06.2]} 57. h6
{[%clk 0:00:20]} 1-0

[Event "Late-Titled-Tuesday-Blitz-July-09-2024"]
[Site "Chess.com"]
[Date "2024.07.09"]
[Round "5"]
[White "osielchesslover2011"]
[Black "Road2GM3000"]
[Result "1-0"]
[WhiteElo "2199"]
[BlackElo "2380"]
[TimeControl "180+1"]
[EndTime "14:54:14 PDT"]
[Termination "osielchesslover2011 won by resignation"]

1. e4 {[%clk 0:03:00.9]} 1... c5 {[%clk 0:02:59.7]} 2. Nf3 {[%clk 0:03:00.2]}
2... d6 {[%clk 0:03:00.3]} 3. d4 {[%clk 0:03:00.1]} 3... cxd4 {[%clk 0:03:01.2]}
4. Nxd4 {[%clk 0:03:00.3]} 4... Nf6 {[%clk 0:03:01.8]} 5. Nc3 {[%clk 0:03:00.7]}
5... a6 {[%clk 0:03:01.8]} 6. Bg5 {[%clk 0:03:01.1]} 6... e6 {[%clk 0:03:02.2]}
7. f4 {[%clk 0:03:01.6]} 7... Qb6 {[%clk 0:03:03]} 8. Qd2 {[%clk 0:03:01]} 8...
Nc6 {[%clk 0:03:03.7]} 9. Nb3 {[%clk 0:02:46.9]} 9... Ng4 {[%clk 0:03:03.6]} 10.
f5 {[%clk 0:02:11.8]} 10... h6 {[%clk 0:02:59.1]} 11. Bf4 {[%clk 0:01:53.9]}
11... Be7 {[%clk 0:02:27.3]} 12. h3 {[%clk 0:01:31.1]} 12... Nge5 {[%clk
0:02:26.3]} 13. O-O-O {[%clk 0:01:29.1]} 13... O-O {[%clk 0:02:21.4]} 14. g4
{[%clk 0:01:14.1]} 14... Rd8 {[%clk 0:01:46.7]} 15. Be2 {[%clk 0:01:09.6]} 15...
Na5 {[%clk 0:01:30.2]} 16. Nxa5 {[%clk 0:00:51.3]} 16... Qxa5 {[%clk 0:01:29.3]}
17. g5 {[%clk 0:00:52]} 17... exf5 {[%clk 0:01:02]} 18. gxh6 {[%clk 0:00:45.2]}
18... g6 {[%clk 0:01:02]} 19. Bg5 {[%clk 0:00:26.6]} 19... Bxg5 {[%clk
0:00:50.7]} 20. Qxg5 {[%clk 0:00:25.5]} 20... Nd7 {[%clk 0:00:28.7]} 21. Nd5
{[%clk 0:00:20.4]} 21... Re8 {[%clk 0:00:27]} 22. exf5 {[%clk 0:00:13.1]} 22...
Kh7 {[%clk 0:00:16.3]} 23. fxg6+ {[%clk 0:00:11.6]} 23... fxg6 {[%clk
0:00:16.6]} 24. Bd3 {[%clk 0:00:11.3]} 24... Ne5 {[%clk 0:00:15.1]} 25. Bxg6+
{[%clk 0:00:08.9]} 25... Nxg6 {[%clk 0:00:14.3]} 26. Nf6+ {[%clk 0:00:09.5]}
26... Kh8 {[%clk 0:00:14.2]} 27. Qxa5 {[%clk 0:00:09.7]} 1-0